OrganisationURI,OrganisationLabel,Organisation Unit,TransactionNumber,Invoice Ref.,Beneficiary Name,Expense Type,Purpose,Payment Date,Amount
http://statistics.data.gov.uk/id/local-authority-district/23UB,Cheltenham Borough Council,Recreation Centre Repairs & Maintenance,14073902,400280,A & E Fire and Security Ltd,R2042-REC111,R & M of Build Fire Systems,29/11/2019,955.37 
http://statistics.data.gov.uk/id/local-authority-district/23UB,Cheltenham Borough Council,Bank Charges,14073424,201900879,Advam (UK) Limited,R4403-COR008,Bank Charges,08/11/2019,"1,547.82 "
http://statistics.data.gov.uk/id/local-authority-district/23UB,Cheltenham Borough Council,Environmental Health General,14073214,10228,Air Monitors Limited,R4000-REG001,Equipment Purchase,08/11/2019,"24,050.00 "
http://statistics.data.gov.uk/id/local-authority-district/23UB,Cheltenham Borough Council,Art Gallery & Museum Repairs & Maintenance,14073417,SOI0299170,AllCoopers Limited,R2705-CUL117,Security Systems,08/11/2019,642.50 
http://statistics.data.gov.uk/id/local-authority-district/23UB,Cheltenham Borough Council,Cyber Business Park,14073919,7756,Allies and Morrison LLP,R4400-PLP105,Services - Professional Fees,29/11/2019,"19,468.00 "
http://statistics.data.gov.uk/id/local-authority-district/23UB,Cheltenham Borough Council,Council Tax Collection,14073255,74610,Alpha Colour Printers Limited,R4300-LTC001,Printing - Services,08/11/2019,797.00 
http://statistics.data.gov.uk/id/local-authority-district/23UB,Cheltenham Borough Council,Registration of Electors,14073444,31965,Alpha Response Print & Mail Limited,R4300-ELE001,Printing - Services,08/11/2019,789.00 
http://statistics.data.gov.uk/id/local-authority-district/23UB,Cheltenham Borough Council,Individual Electoral Registration,14073443,31975,Alpha Response Print & Mail Limited,R4300-ELE010,Printing - Services,08/11/2019,"1,979.00 "
http://statistics.data.gov.uk/id/local-authority-district/23UB,Cheltenham Borough Council,Urban Design,14073493,AE22589,AndersElite Ltd,R1100-URB101,Agency Staff,15/11/2019,955.50 
http://statistics.data.gov.uk/id/local-authority-district/23UB,Cheltenham Borough Council,Urban Design,14073805,AE23143,AndersElite Ltd,R1100-URB101,Agency Staff,22/11/2019,724.50 
http://statistics.data.gov.uk/id/local-authority-district/23UB,Cheltenham Borough Council,Urban Design,14073914,AE23720,AndersElite Ltd,R1100-URB101,Agency Staff,29/11/2019,525.00 
http://statistics.data.gov.uk/id/local-authority-district/23UB,Cheltenham Borough Council,Window & Door Renewals,14073820,FT_Inv00005199,Aperture Trading Ltd T/A Calibre Doors,C1107-CAH017,Building Works,14/11/2019,"6,717.94 "
http://statistics.data.gov.uk/id/local-authority-district/23UB,Cheltenham Borough Council,Window & Door Renewals,14073820,FT_Inv00005199,Aperture Trading Ltd T/A Calibre Doors,C1107-CAH017,Building Works,14/11/2019,"19,318.60 "
http://statistics.data.gov.uk/id/local-authority-district/23UB,Cheltenham Borough Council,Window & Door Renewals,14073819,FT_Inv00005581,Aperture Trading Ltd T/A Calibre Doors,C1107-CAH017,Building Works,19/11/2019,"11,579.32 "
http://statistics.data.gov.uk/id/local-authority-district/23UB,Cheltenham Borough Council,Window & Door Renewals,14073819,FT_Inv00005581,Aperture Trading Ltd T/A Calibre Doors,C1107-CAH017,Building Works,19/11/2019,"34,289.16 "
http://statistics.data.gov.uk/id/local-authority-district/23UB,Cheltenham Borough Council,Car Parks - Off Street R&M,14073344,1087,Ardagh Management Limited,R2008-CPK101,R & M of Build - Reactive Repairs,08/11/2019,"4,820.00 "
http://statistics.data.gov.uk/id/local-authority-district/23UB,Cheltenham Borough Council,"Cemetery, Crematorium and Churchyards",14073736,31597,Arkell and Hurcombe Limited,R4011-CCM001,Goods For Resale,22/11/2019,646.00 
http://statistics.data.gov.uk/id/local-authority-district/23UB,Cheltenham Borough Council,Income and Expenditure on Investment Properties and Changes in Their Fair Value,14073517,1458,Artizan Roofing Limited,R2081-FIE040,Roof Repairs,15/11/2019,875.00 
http://statistics.data.gov.uk/id/local-authority-district/23UB,Cheltenham Borough Council,Cheltenham Depot,14073516,1459,Artizan Roofing Limited,R2081-ADB103,Roof Repairs,15/11/2019,"1,160.00 "
http://statistics.data.gov.uk/id/local-authority-district/23UB,Cheltenham Borough Council,Community Welfare Grants,14073760,1,BaxterStorey Limited,R4101-GBD001,Catering - Hospitality,22/11/2019,600.00 
http://statistics.data.gov.uk/id/local-authority-district/23UB,Cheltenham Borough Council,Pittville Pump Room Repairs & Maintenance,14073156,BR6474,Bell Decorating Group Limited,R2004-CUL113,R & M of Build Programmed,01/11/2019,"1,377.48 "
http://statistics.data.gov.uk/id/local-authority-district/23UB,Cheltenham Borough Council,Big Local Project,14073441,17744,Bennetts Coaches Limited,R6280-COM104,Grants,15/11/2019,595.00 
http://statistics.data.gov.uk/id/local-authority-district/23UB,Cheltenham Borough Council,Treasury Management,14073446,BGC-Oct-2019-00003361,BGC European Holdings,R4447-COR006,Brokerage Fees,08/11/2019,"1,301.37 "
http://statistics.data.gov.uk/id/local-authority-district/23UB,Cheltenham Borough Council,Treasury Management,14073447,BGC-Oct-2019-00003667,BGC European Holdings,R4447-COR006,Brokerage Fees,08/11/2019,"1,726.03 "
http://statistics.data.gov.uk/id/local-authority-district/23UB,Cheltenham Borough Council,Council Tax Collection,14073745,213932,Bristow & Sutor,R4406-LTC001,Bailiffs Fees,22/11/2019,540.30 
http://statistics.data.gov.uk/id/local-authority-district/23UB,Cheltenham Borough Council,Income and Expenditure on Investment Properties and Changes in Their Fair Value,14073632,979390516,British Gas Business,R2100-FIE040,Electricity,15/11/2019,"1,233.66 "
http://statistics.data.gov.uk/id/local-authority-district/23UB,Cheltenham Borough Council,CCTV,14073497,20028430,BT Redcare,R4548-CCT001,IT - Cabling and Network,15/11/2019,"5,174.59 "
http://statistics.data.gov.uk/id/local-authority-district/23UB,Cheltenham Borough Council,Vehicles & recycling equipment,14073277,846,Bunce (Ashbury) Ltd,C2000-CAP301,Acquisition of Vehicles,15/11/2019,"134,410.00 "
http://statistics.data.gov.uk/id/local-authority-district/23UB,Cheltenham Borough Council,Vehicles & recycling equipment,14073749,847,Bunce (Ashbury) Ltd,C2000-CAP301,Acquisition of Vehicles,22/11/2019,"3,730.00 "
http://statistics.data.gov.uk/id/local-authority-district/23UB,Cheltenham Borough Council,Vehicles & recycling equipment,14073750,848,Bunce (Ashbury) Ltd,C2000-CAP301,Acquisition of Vehicles,22/11/2019,"3,730.00 "
http://statistics.data.gov.uk/id/local-authority-district/23UB,Cheltenham Borough Council,Supervision and Management,14073016,DINV/00000990,Centigen Facilities Management Limited,R5014-HRA110,Minor Neighbourhood Works - St Peter's & The Moors,01/11/2019,665.00 
http://statistics.data.gov.uk/id/local-authority-district/23UB,Cheltenham Borough Council,Supervision and Management,14073017,DINV/00000991,Centigen Facilities Management Limited,R5011-HRA110,Minor Neighbourhood Works,01/11/2019,620.00 
http://statistics.data.gov.uk/id/local-authority-district/23UB,Cheltenham Borough Council,Recreation Centre Repairs & Maintenance,14073690,301267/10/2019,Centrica Business Solutions (Generations) limited,R2100-REC111,Electricity,15/11/2019,"2,965.57 "
http://statistics.data.gov.uk/id/local-authority-district/23UB,Cheltenham Borough Council,Waste & Recycling - Marketing & Management,14073314,21378,Characters Signs Limited,R4000-RYC007,Equipment Purchase,08/11/2019,"3,272.11 "
http://statistics.data.gov.uk/id/local-authority-district/23UB,Cheltenham Borough Council,General Fund Balance Sheet,14073663,CBID0096,Cheltenham Bid Limited,B5120-BAL100,Short Term Debtors (incl PIA) - AR control account (reallocated),13/11/2019,"-2,392.79 "
http://statistics.data.gov.uk/id/local-authority-district/23UB,Cheltenham Borough Council,Cheltenham Business Improvement District (BID) Levy,14073663,CBID0096,Cheltenham Bid Limited,R4974-HLD160,Reimbursement to other L.A.'s,13/11/2019,"66,466.25 "
http://statistics.data.gov.uk/id/local-authority-district/23UB,Cheltenham Borough Council,Xmas in Cheltenham,14073576,CBID0097,Cheltenham Bid Limited,R4000-ECD101,Equipment Purchase,15/11/2019,"32,900.00 "
http://statistics.data.gov.uk/id/local-authority-district/23UB,Cheltenham Borough Council,Community Welfare Grants,14073563,RF/2019/003,Cheltenham Design Foundation,R6280-GBD001,Grants,15/11/2019,"1,000.00 "
http://statistics.data.gov.uk/id/local-authority-district/23UB,Cheltenham Borough Council,Community Welfare Grants,14073465,COMMUNITY PRIDE,Cheltenham Festivals,R6280-GBD001,Grants,08/11/2019,"4,200.00 "
http://statistics.data.gov.uk/id/local-authority-district/23UB,Cheltenham Borough Council,Parks & Gardens Operations,14073503,16944,Cheltenham Surfacing Co Limited,R2075-OPS001,Grounds Maintenance - Contract,15/11/2019,"9,972.50 "
http://statistics.data.gov.uk/id/local-authority-district/23UB,Cheltenham Borough Council,Parks & Gardens Operations,14073503,16944,Cheltenham Surfacing Co Limited,R2075-OPS001,Grounds Maintenance - Contract,15/11/2019,"-9,972.50 "
http://statistics.data.gov.uk/id/local-authority-district/23UB,Cheltenham Borough Council,Parks & Gardens Operations,14073503,16944,Cheltenham Surfacing Co Limited,R2075-OPS001,Grounds Maintenance - Contract,15/11/2019,"9,972.50 "
http://statistics.data.gov.uk/id/local-authority-district/23UB,Cheltenham Borough Council,Community Welfare Grants,14073564,INV-1072,Cheltenham West End Partnership Limited,R6280-GBD001,Grants,15/11/2019,"1,757.00 "
http://statistics.data.gov.uk/id/local-authority-district/23UB,Cheltenham Borough Council,Property Services,14073246,3145799,CIPFA Business Limited,R1650-SUP025,Training Expenses,08/11/2019,"1,645.00 "
http://statistics.data.gov.uk/id/local-authority-district/23UB,Cheltenham Borough Council,Revenues & Benefits Overheads,14073770,M/RB067026,Civica UK Limited,R4548-LTC101,IT - Cabling and Network,22/11/2019,997.41 
http://statistics.data.gov.uk/id/local-authority-district/23UB,Cheltenham Borough Council,Vehicles & recycling equipment,14073292,SI-1856,CLB Cleanequip Ltd,C2000-CAP301,Acquisition of Vehicles,01/11/2019,"18,900.00 "
http://statistics.data.gov.uk/id/local-authority-district/23UB,Cheltenham Borough Council,Vehicles & recycling equipment,14073439,SI-1893,CLB Cleanequip Ltd,C2000-CAP301,Acquisition of Vehicles,08/11/2019,"18,715.00 "
http://statistics.data.gov.uk/id/local-authority-district/23UB,Cheltenham Borough Council,Repairs and Maintenance,14073243,NV166083,Concept Elevators (UK) Ltd,R2041-HRA100,R & M of Build Lifts,15/11/2019,"2,415.05 "
http://statistics.data.gov.uk/id/local-authority-district/23UB,Cheltenham Borough Council,Phase 3 Development,14073298,15119-2220,Connells Residential,C1114-CAH039,Valuation Fees,22/11/2019,550.00 
http://statistics.data.gov.uk/id/local-authority-district/23UB,Cheltenham Borough Council,Phase 3 Development,14073299,15119-2221,Connells Residential,C1114-CAH039,Valuation Fees,22/11/2019,630.00 
http://statistics.data.gov.uk/id/local-authority-district/23UB,Cheltenham Borough Council,Oakley Resource Centre,14073723,INV-1202,Connor and Co,R4400-COM101,Services - Professional Fees,22/11/2019,808.33 
http://statistics.data.gov.uk/id/local-authority-district/23UB,Cheltenham Borough Council,Flood Risk Management,14073436,C33296,Cotswold Drain Service Limited,R5001-FRM101,TPP - Major External Contractors,15/11/2019,"1,700.00 "
http://statistics.data.gov.uk/id/local-authority-district/23UB,Cheltenham Borough Council,Flood Risk Management,14073437,C33301,Cotswold Drain Service Limited,R5001-FRM101,TPP - Major External Contractors,15/11/2019,720.00 
http://statistics.data.gov.uk/id/local-authority-district/23UB,Cheltenham Borough Council,Flood Risk Management,14073702,C333365,Cotswold Drain Service Limited,R5001-FRM101,TPP - Major External Contractors,22/11/2019,520.00 
http://statistics.data.gov.uk/id/local-authority-district/23UB,Cheltenham Borough Council,Development costs - Monkscroft,14073833,15822,Cotswold Surveyors Limited,C1114-CAH061,Valuation Fees,29/11/2019,"1,500.00 "
http://statistics.data.gov.uk/id/local-authority-district/23UB,Cheltenham Borough Council,Oakley Resource Centre,14073455,14866,County Clean Limited,R2700-COM101,Contract Cleaning,08/11/2019,"1,144.24 "
http://statistics.data.gov.uk/id/local-authority-district/23UB,Cheltenham Borough Council,Car Parks - Off Street Operations,14073421,IN134759,CREDITCALL LTD,R4428-CPK001,Services - credit card charges,15/11/2019,961.68 
http://statistics.data.gov.uk/id/local-authority-district/23UB,Cheltenham Borough Council,Non Traditional Homes,14073281,35161,Curtins Consulting Limited,C1107-CAH036,Building Works,01/11/2019,"9,411.00 "
http://statistics.data.gov.uk/id/local-authority-district/23UB,Cheltenham Borough Council,Parks & Gardens Operations,14073759,1183,D A Jones Landscapes,R2075-OPS001,Grounds Maintenance - Contract,22/11/2019,520.00 
http://statistics.data.gov.uk/id/local-authority-district/23UB,Cheltenham Borough Council,Parks & Gardens Operations,14073759,1183,D A Jones Landscapes,R2075-OPS001,Grounds Maintenance - Contract,22/11/2019,-520.00 
http://statistics.data.gov.uk/id/local-authority-district/23UB,Cheltenham Borough Council,Tourist/Visitor Information Centre,14073135,1360,D B Max Ltd,R4400-TOU002,Services - Professional Fees,01/11/2019,"1,075.00 "
http://statistics.data.gov.uk/id/local-authority-district/23UB,Cheltenham Borough Council,Modernisation,14072910,7402564337,Dell Corporation Limited,R4000-SUP107,Equipment Purchase,01/11/2019,"1,038.69 "
http://statistics.data.gov.uk/id/local-authority-district/23UB,Cheltenham Borough Council,Modernisation,14073297,7402566369,Dell Corporation Limited,R4530-SUP107,IT - Purchase of Hardware,01/11/2019,659.85 
http://statistics.data.gov.uk/id/local-authority-district/23UB,Cheltenham Borough Council,Modernisation,14073469,7402568857,Dell Corporation Limited,R4530-SUP107,IT - Purchase of Hardware,15/11/2019,659.85 
http://statistics.data.gov.uk/id/local-authority-district/23UB,Cheltenham Borough Council,Vehicles & recycling equipment,14073581,363951,Dennis Eagle Limited,C2000-CAP301,Acquisition of Vehicles,15/11/2019,"59,511.90 "
http://statistics.data.gov.uk/id/local-authority-district/23UB,Cheltenham Borough Council,Income and Expenditure on Investment Properties and Changes in Their Fair Value,14073155,309938,Devonshires Solicitors LLP,R4400-FIE040,Services - Professional Fees,01/11/2019,"3,069.00 "
http://statistics.data.gov.uk/id/local-authority-district/23UB,Cheltenham Borough Council,Council Tax Collection,14073334,6569006,DHL Parcel UK Limited T/A UK Mail,R4520-LTC001,Postages - stamps,08/11/2019,504.60 
http://statistics.data.gov.uk/id/local-authority-district/23UB,Cheltenham Borough Council,Environmental Health General,14073488,238209,Direct Communications Radio Services Limited (DCRS),R4000-REG001,Equipment Purchase,15/11/2019,863.00 
http://statistics.data.gov.uk/id/local-authority-district/23UB,Cheltenham Borough Council,Licensing,14073456,B26085,Disclosure & Barring Service,R1601-REG002,CRB Police Checks,29/11/2019,640.00 
http://statistics.data.gov.uk/id/local-authority-district/23UB,Cheltenham Borough Council,Corporate Management,14073733,INV-1186,Engage Deep Ltd,R4400-COR001,Services - Professional Fees,22/11/2019,"1,997.50 "
http://statistics.data.gov.uk/id/local-authority-district/23UB,Cheltenham Borough Council,Corporate Management,14073732,INV-1187,Engage Deep Ltd,R4400-COR001,Services - Professional Fees,22/11/2019,"3,937.63 "
http://statistics.data.gov.uk/id/local-authority-district/23UB,Cheltenham Borough Council,Asbestos Management,14073151,9815,Environmental Management Solutions Limited,C1107-CAH012,Building Works,22/11/2019,"47,175.00 "
http://statistics.data.gov.uk/id/local-authority-district/23UB,Cheltenham Borough Council,Asbestos Management,14073838,9975,Environmental Management Solutions Limited,C1107-CAH012,Building Works,29/11/2019,"17,507.50 "
http://statistics.data.gov.uk/id/local-authority-district/23UB,Cheltenham Borough Council,Asbestos Management,14073838,9975,Environmental Management Solutions Limited,C1107-CAH012,Building Works,29/11/2019,"-17,507.50 "
http://statistics.data.gov.uk/id/local-authority-district/23UB,Cheltenham Borough Council,Asbestos Management,14073838,9975,Environmental Management Solutions Limited,C1107-CAH012,Building Works,29/11/2019,"17,507.50 "
http://statistics.data.gov.uk/id/local-authority-district/23UB,Cheltenham Borough Council,Oakley Resource Centre,14073631,H17CB0792F,E-on Energy,R2100-COM101,Electricity,15/11/2019,"1,319.18 "
http://statistics.data.gov.uk/id/local-authority-district/23UB,Cheltenham Borough Council,Sustainability Measures,14073816,6174,Evolve Home Energy Solutions Limited,C1107-CAH032,Building Works,29/11/2019,615.00 
http://statistics.data.gov.uk/id/local-authority-district/23UB,Cheltenham Borough Council,Human Resources,14073452,19-0974,Flu Xpress Limited,R4401-SUP003,Services - Fees and Charges,15/11/2019,946.33 
http://statistics.data.gov.uk/id/local-authority-district/23UB,Cheltenham Borough Council,Non Traditional Homes,14073920,3684,Focus Ecology Limited,C1107-CAH036,Building Works,29/11/2019,"3,856.75 "
http://statistics.data.gov.uk/id/local-authority-district/23UB,Cheltenham Borough Council,Big Local Project,14073661,1920-4,Gardners Lane Primary School,R6280-COM104,Grants,15/11/2019,"4,508.61 "
http://statistics.data.gov.uk/id/local-authority-district/23UB,Cheltenham Borough Council,Parks & Gardens Operations,14073729,1514,Geomap Limited,R2075-OPS001,Grounds Maintenance - Contract,22/11/2019,"2,900.00 "
http://statistics.data.gov.uk/id/local-authority-district/23UB,Cheltenham Borough Council,Cyber Business Park,14073432,355,GFirst LEP CIC,R4400-PLP105,Services - Professional Fees,08/11/2019,"4,954.61 "
http://statistics.data.gov.uk/id/local-authority-district/23UB,Cheltenham Borough Council,Off Street Car Parking Infrastructure Investment,14072987,UK 89905,Gigant Products for Industry Limited,C1107-CAP129,Building Works,08/11/2019,"2,599.00 "
http://statistics.data.gov.uk/id/local-authority-district/23UB,Cheltenham Borough Council,Off Street Car Parking Infrastructure Investment,14072987,UK 89905,Gigant Products for Industry Limited,C1107-CAP129,Building Works,08/11/2019,"2,599.00 "
http://statistics.data.gov.uk/id/local-authority-district/23UB,Cheltenham Borough Council,Off Street Car Parking Infrastructure Investment,14072987,UK 89905,Gigant Products for Industry Limited,C1107-CAP129,Building Works,08/11/2019,"-2,599.00 "
http://statistics.data.gov.uk/id/local-authority-district/23UB,Cheltenham Borough Council,Vehicles & recycling equipment,14071860,31091,GJF Fabrications Limited,C4000-CAP301,Acquisition of Equipment,01/11/2019,"1,690.00 "
http://statistics.data.gov.uk/id/local-authority-district/23UB,Cheltenham Borough Council,Vehicles & recycling equipment,14072917,31117,GJF Fabrications Limited,C4000-CAP301,Acquisition of Equipment,01/11/2019,"1,820.00 "
http://statistics.data.gov.uk/id/local-authority-district/23UB,Cheltenham Borough Council,Vehicles & recycling equipment,14072918,31126,GJF Fabrications Limited,C4000-CAP301,Acquisition of Equipment,01/11/2019,"1,820.00 "
http://statistics.data.gov.uk/id/local-authority-district/23UB,Cheltenham Borough Council,Vehicles & recycling equipment,14073774,31353,GJF Fabrications Limited,C4000-CAP301,Acquisition of Equipment,22/11/2019,"12,350.00 "
http://statistics.data.gov.uk/id/local-authority-district/23UB,Cheltenham Borough Council,Vehicles & recycling equipment,14073773,31354,GJF Fabrications Limited,C4000-CAP301,Acquisition of Equipment,22/11/2019,"6,175.00 "
http://statistics.data.gov.uk/id/local-authority-district/23UB,Cheltenham Borough Council,Car Parks - Off Street Operations,14073254,51580,Glevum Security Limited,R4401-CPK001,Services - Fees and Charges,01/11/2019,"1,215.20 "
http://statistics.data.gov.uk/id/local-authority-district/23UB,Cheltenham Borough Council,Environmental Health General,14073559,13293180,Gloucester City Council,R1100-REG001,Agency Staff,29/11/2019,"1,103.33 "
http://statistics.data.gov.uk/id/local-authority-district/23UB,Cheltenham Borough Council,Environmental Health General,14073558,13293197,Gloucester City Council,R1100-REG001,Agency Staff,29/11/2019,"1,073.28 "
http://statistics.data.gov.uk/id/local-authority-district/23UB,Cheltenham Borough Council,War Memorials,14073585,32510,Gooch Group Limited,R2078-CUL002,R&M of Build - external structures,15/11/2019,876.76 
http://statistics.data.gov.uk/id/local-authority-district/23UB,Cheltenham Borough Council,Repairs and Maintenance,14073725,32579,Gooch Group Limited,R2700-HRA100,Contract Cleaning,22/11/2019,688.57 
http://statistics.data.gov.uk/id/local-authority-district/23UB,Cheltenham Borough Council,Corporate Management,14073811,9002011,Grant Thornton UK LLP,R4430-COR001,Audit Fees,29/11/2019,"4,500.00 "
http://statistics.data.gov.uk/id/local-authority-district/23UB,Cheltenham Borough Council,Income and Expenditure on Investment Properties and Changes in Their Fair Value,14073331,9579,H & W Facilities Management Limited,R2700-FIE040,Contract Cleaning,08/11/2019,548.17 
http://statistics.data.gov.uk/id/local-authority-district/23UB,Cheltenham Borough Council,Flood Risk Management,14073484,204628CH011,Halcrow Group Limited,R5001-FRM101,TPP - Major External Contractors,15/11/2019,"1,267.00 "
http://statistics.data.gov.uk/id/local-authority-district/23UB,Cheltenham Borough Council,Flood Risk Management,14073807,204628CH012,Halcrow Group Limited,R5001-FRM101,TPP - Major External Contractors,29/11/2019,"2,386.00 "
http://statistics.data.gov.uk/id/local-authority-district/23UB,Cheltenham Borough Council,General Fund Balance Sheet,14073502,CISDEDUCT0610-051119,HMRC (CBC - CIS),B6220-BAL100,CIS Deductions Control (reallocated),15/11/2019,"17,881.00 "
http://statistics.data.gov.uk/id/local-authority-district/23UB,Cheltenham Borough Council,Training & Development,14073351,214PS00149425APPRENTICELVY07,HMRC (CBC - PAYE & NIC),R1425-SUP020,Apprentice Levy,08/11/2019,"1,733.00 "
http://statistics.data.gov.uk/id/local-authority-district/23UB,Cheltenham Borough Council,General Fund Balance Sheet,14072657,ELECTION TAX REFUNDS,HMRC (CBC - PAYE & NIC),B6110-BAL100,Short term Creditors - PAYE and NI,01/11/2019,786.20 
http://statistics.data.gov.uk/id/local-authority-district/23UB,Cheltenham Borough Council,General Fund Balance Sheet,14073350,120PP01583205PAYEOCT 2019,HMRC (HOLST MUSEUM PAYE),B6110-BAL100,Short term Creditors - PAYE and NI,08/11/2019,511.23 
http://statistics.data.gov.uk/id/local-authority-district/23UB,Cheltenham Borough Council,Community Welfare Grants,14073987,COMMUNITY PRIDE 281119,Holst Birthplace Museum,R6280-GBD001,Grants,29/11/2019,"1,695.00 "
http://statistics.data.gov.uk/id/local-authority-district/23UB,Cheltenham Borough Council,Allotments,14073970,19/20/114,Home Flair Catering,R6281-OPS004,Awards/Prizes,29/11/2019,516.00 
http://statistics.data.gov.uk/id/local-authority-district/23UB,Cheltenham Borough Council,Environmental Health General,14073102,522/19,Ian George (Funerals) Limited,R4433-REG001,Burial Fees - National Assitance Act,01/11/2019,"1,150.00 "
http://statistics.data.gov.uk/id/local-authority-district/23UB,Cheltenham Borough Council,Licensing,14073278,7027340,Idox Software Limited,R4401-REG002,Services - Fees and Charges,01/11/2019,"1,600.00 "
http://statistics.data.gov.uk/id/local-authority-district/23UB,Cheltenham Borough Council,Parks & Gardens Operations,14073676,INV-0005,In The Park Ltd,R2100-OPS001,Electricity,22/11/2019,"1,070.89 "
http://statistics.data.gov.uk/id/local-authority-district/23UB,Cheltenham Borough Council,Development costs - Garage Sites 2c,14073286,11,J Harper & Sons (Leominster) Limited,C1107-CAH055,Building Works,08/11/2019,"14,898.25 "
http://statistics.data.gov.uk/id/local-authority-district/23UB,Cheltenham Borough Council,Sports & Open Spaces Operations,14073667,19/006,REDACTED,R2071-OPS002,Open Spaces and Grassed Areas,22/11/2019,"2,624.47 "
http://statistics.data.gov.uk/id/local-authority-district/23UB,Cheltenham Borough Council,Sports & Open Spaces Operations,14073667,19/006,REDACTED,R2071-OPS002,Open Spaces and Grassed Areas,22/11/2019,"1,667.91 "
http://statistics.data.gov.uk/id/local-authority-district/23UB,Cheltenham Borough Council,Parks & Gardens Operations,14073762,2142,REDACTED,R4010-OPS001,Materials - Other Materials,22/11/2019,-575.00 
http://statistics.data.gov.uk/id/local-authority-district/23UB,Cheltenham Borough Council,Parks & Gardens Operations,14073762,2142,REDACTED,R4010-OPS001,Materials - Other Materials,22/11/2019,575.00 
http://statistics.data.gov.uk/id/local-authority-district/23UB,Cheltenham Borough Council,Supervision and Management,14073273,RND300419/comb-19,John Gillman & Sons (Electrical) Limited (Gillmans Appliance),R4002-HRA110,Tools & Equipment - Lease/Rental,08/11/2019,"1,950.78 "
http://statistics.data.gov.uk/id/local-authority-district/23UB,Cheltenham Borough Council,Supervision and Management,14073274,RND300519/comb-19,John Gillman & Sons (Electrical) Limited (Gillmans Appliance),R4002-HRA110,Tools & Equipment - Lease/Rental,08/11/2019,"1,950.78 "
http://statistics.data.gov.uk/id/local-authority-district/23UB,Cheltenham Borough Council,Supervision and Management,14073272,RND300718/comb-18,John Gillman & Sons (Electrical) Limited (Gillmans Appliance),R4002-HRA110,Tools & Equipment - Lease/Rental,08/11/2019,"1,950.78 "
http://statistics.data.gov.uk/id/local-authority-district/23UB,Cheltenham Borough Council,Supervision and Management,14073336,RND301019/comb-19,John Gillman & Sons (Electrical) Limited (Gillmans Appliance),R4002-HRA110,Tools & Equipment - Lease/Rental,08/11/2019,"1,950.78 "
http://statistics.data.gov.uk/id/local-authority-district/23UB,Cheltenham Borough Council,Parks & Gardens Operations,14073361,1392,Jon Wall Fisheries Limited,R2075-OPS001,Grounds Maintenance - Contract,08/11/2019,"1,950.00 "
http://statistics.data.gov.uk/id/local-authority-district/23UB,Cheltenham Borough Council,External Improvements,14073428,6724,Joyner P A Ltd,C1107-CAH003,Building Works,08/11/2019,"227,932.26 "
http://statistics.data.gov.uk/id/local-authority-district/23UB,Cheltenham Borough Council,External Improvements,14073583,6744,Joyner P A Ltd,C1107-CAH003,Building Works,15/11/2019,"89,503.37 "
http://statistics.data.gov.uk/id/local-authority-district/23UB,Cheltenham Borough Council,Trade Waste,14073472,57072,JPK Trade Supplies Limited,R4000-TRW001,Equipment Purchase,15/11/2019,"1,558.00 "
http://statistics.data.gov.uk/id/local-authority-district/23UB,Cheltenham Borough Council,Trade Waste,14073471,57073,JPK Trade Supplies Limited,R4000-TRW001,Equipment Purchase,22/11/2019,"1,556.14 "
http://statistics.data.gov.uk/id/local-authority-district/23UB,Cheltenham Borough Council,Prince of Wales Stadium Repairs & Maintenance,14073691,35389,King Builders Gloucester Limited,R2004-REC112,R & M of Build Programmed,22/11/2019,"9,460.00 "
http://statistics.data.gov.uk/id/local-authority-district/23UB,Cheltenham Borough Council,Cheltenham Depot,14073342,35570,King Builders Gloucester Limited,R2004-ADB103,R & M of Build Programmed,08/11/2019,"4,500.00 "
http://statistics.data.gov.uk/id/local-authority-district/23UB,Cheltenham Borough Council,Sports & Open Spaces Repairs & Maintenance,14073716,35667,King Builders Gloucester Limited,R2081-OPS122,Roof Repairs,22/11/2019,"1,440.00 "
http://statistics.data.gov.uk/id/local-authority-district/23UB,Cheltenham Borough Council,Supervision and Management,14073685,1203906,Liberty Gas Group,R2040-HRA110,R & M of Build Central Heating,22/11/2019,"52,977.76 "
http://statistics.data.gov.uk/id/local-authority-district/23UB,Cheltenham Borough Council,New Heating Installations,14073319,1204011,Liberty Gas Group,C1107-CAH009,Building Works,08/11/2019,"3,600.91 "
http://statistics.data.gov.uk/id/local-authority-district/23UB,Cheltenham Borough Council,Repairs and Maintenance,14073318,1204013,Liberty Gas Group,R2040-HRA100,R & M of Build Central Heating,08/11/2019,"26,748.60 "
http://statistics.data.gov.uk/id/local-authority-district/23UB,Cheltenham Borough Council,ICT,14073727,16002427,LinchPin Networks Limited,R4548-SUP005,IT - Cabling and Network,22/11/2019,"1,599.50 "
http://statistics.data.gov.uk/id/local-authority-district/23UB,Cheltenham Borough Council,ICT,14073775,16002435,LinchPin Networks Limited,R4548-SUP005,IT - Cabling and Network,22/11/2019,"1,599.50 "
http://statistics.data.gov.uk/id/local-authority-district/23UB,Cheltenham Borough Council,ICT,14073839,16002442,LinchPin Networks Limited,R4548-SUP005,IT - Cabling and Network,29/11/2019,"4,672.50 "
http://statistics.data.gov.uk/id/local-authority-district/23UB,Cheltenham Borough Council,Repairs and Maintenance,14073677,SIN00092834/A,Low Carbon Exchange (LCX Solar Limited),R2004-HRA100,R & M of Build Programmed,22/11/2019,"17,394.65 "
http://statistics.data.gov.uk/id/local-authority-district/23UB,Cheltenham Borough Council,Parks & Gardens Operations,14073300,2190660,Lubbe & Sons (Bulbs) Limited,R4010-OPS001,Materials - Other Materials,01/11/2019,930.00 
http://statistics.data.gov.uk/id/local-authority-district/23UB,Cheltenham Borough Council,Parks & Gardens Operations,14073205,2957,Lushglen Exterior Furniture Renovation Services,R2075-OPS001,Grounds Maintenance - Contract,01/11/2019,"1,302.00 "
http://statistics.data.gov.uk/id/local-authority-district/23UB,Cheltenham Borough Council,General Fund Balance Sheet,14073828,BALANCE AS AT 20.11.19,Mayor of Cheltenham's Charity Account,B6170-BAL100,Short Term Revenue Creditors (incl RIA) - Other entities and individuals,22/11/2019,"2,424.00 "
http://statistics.data.gov.uk/id/local-authority-district/23UB,Cheltenham Borough Council,Tourist/Visitor Information Centre,14073285,MSW2020-019,MEET South West LLP,R4400-TOU002,Services - Professional Fees,08/11/2019,780.00 
http://statistics.data.gov.uk/id/local-authority-district/23UB,Cheltenham Borough Council,Pest Control,14073765,8042,Metex Online Ltd,R4000-REG018,Equipment Purchase,22/11/2019,624.00 
http://statistics.data.gov.uk/id/local-authority-district/23UB,Cheltenham Borough Council,Repairs and Maintenance,14073788,41963,Morgan Lambert Limited,R2040-HRA100,R & M of Build Central Heating,29/11/2019,"1,750.00 "
http://statistics.data.gov.uk/id/local-authority-district/23UB,Cheltenham Borough Council,Supervision and Management,14073787,41964,Morgan Lambert Limited,R2040-HRA110,R & M of Build Central Heating,29/11/2019,"1,750.00 "
http://statistics.data.gov.uk/id/local-authority-district/23UB,Cheltenham Borough Council,Waste & Recycling - Marketing & Management,14073146,2547,Mosaic Publicity Limited,R1652-RYC007,Training Fees (External),01/11/2019,"1,395.00 "
http://statistics.data.gov.uk/id/local-authority-district/23UB,Cheltenham Borough Council,"Cemetery, Crematorium and Churchyards",14073438,311019,REDACTED,R4401-CCM001,Services - Fees and Charges,08/11/2019,806.62 
http://statistics.data.gov.uk/id/local-authority-district/23UB,Cheltenham Borough Council,Sports & Open Spaces Operations,14073680,03-Oct,Mumkin Operational Services,R4003-OPS002,Tools & Equipment - R & M,15/11/2019,"1,500.00 "
http://statistics.data.gov.uk/id/local-authority-district/23UB,Cheltenham Borough Council,Parks & Gardens Operations,14073681,Qt 19/05,Mumkin Operational Services,R2706-OPS001,Cleaning - reactive,22/11/2019,"1,420.00 "
http://statistics.data.gov.uk/id/local-authority-district/23UB,Cheltenham Borough Council,Window & Door Renewals,14073720,19090287,Nationwide Windows Limited,C1107-CAH017,Building Works,22/11/2019,"119,922.69 "
http://statistics.data.gov.uk/id/local-authority-district/23UB,Cheltenham Borough Council,Window & Door Renewals,14073719,19090288,Nationwide Windows Limited,C1107-CAH017,Building Works,29/11/2019,"30,876.99 "
http://statistics.data.gov.uk/id/local-authority-district/23UB,Cheltenham Borough Council,Non Traditional Homes,14073284,132235,Natural England,C1107-CAH036,Building Works,01/11/2019,631.25 
http://statistics.data.gov.uk/id/local-authority-district/23UB,Cheltenham Borough Council,Supervision and Management,14073317,28,Nature First Limited,R2070-HRA110,Tree Work,08/11/2019,"1,100.00 "
http://statistics.data.gov.uk/id/local-authority-district/23UB,Cheltenham Borough Council,Crematorium Scheme: New Build,14073474,42/20,Nature First Limited,C1102-CAP601,Landscaping,22/11/2019,"1,280.00 "
http://statistics.data.gov.uk/id/local-authority-district/23UB,Cheltenham Borough Council,Supervision and Management,14073842,54,Nature First Limited,R2070-HRA110,Tree Work,29/11/2019,"1,000.00 "
http://statistics.data.gov.uk/id/local-authority-district/23UB,Cheltenham Borough Council,High Street Public Realm Improvements,14073360,INV-0058,Neo Traffic Data Services,C1105-CAP205,Design Services,08/11/2019,"1,200.00 "
http://statistics.data.gov.uk/id/local-authority-district/23UB,Cheltenham Borough Council,Internal Improvements - Communal,14073713,13208,NKS Contracts (Central) Limited,C1107-CAH035,Building Works,22/11/2019,"85,010.84 "
http://statistics.data.gov.uk/id/local-authority-district/23UB,Cheltenham Borough Council,Internal Improvements - Communal,14073713,13208,NKS Contracts (Central) Limited,C1107-CAH035,Building Works,22/11/2019,"-85,010.84 "
http://statistics.data.gov.uk/id/local-authority-district/23UB,Cheltenham Borough Council,Internal Improvements - Communal,14073713,13208,NKS Contracts (Central) Limited,C1107-CAH035,Building Works,22/11/2019,"85,010.84 "
http://statistics.data.gov.uk/id/local-authority-district/23UB,Cheltenham Borough Council,Internal Improvements - Communal,14073714,13209,NKS Contracts (Central) Limited,C1107-CAH035,Building Works,22/11/2019,"19,802.12 "
http://statistics.data.gov.uk/id/local-authority-district/23UB,Cheltenham Borough Council,Internal Improvements - Communal,14073714,13209,NKS Contracts (Central) Limited,C1107-CAH035,Building Works,22/11/2019,"19,802.12 "
http://statistics.data.gov.uk/id/local-authority-district/23UB,Cheltenham Borough Council,Internal Improvements - Communal,14073714,13209,NKS Contracts (Central) Limited,C1107-CAH035,Building Works,22/11/2019,"-19,802.12 "
http://statistics.data.gov.uk/id/local-authority-district/23UB,Cheltenham Borough Council,Internal Improvements - Communal,14073751,13210,NKS Contracts (Central) Limited,C1107-CAH035,Building Works,29/11/2019,"9,762.03 "
http://statistics.data.gov.uk/id/local-authority-district/23UB,Cheltenham Borough Council,Cyber Business Park,14073511,3733,NSF Trading Limited,R4410-PLP105,Hire of Facilities,22/11/2019,879.17 
http://statistics.data.gov.uk/id/local-authority-district/23UB,Cheltenham Borough Council,Property Services,14073402,13169,NSR Management Ltd,R4401-SUP025,Services - Fees and Charges,08/11/2019,630.00 
http://statistics.data.gov.uk/id/local-authority-district/23UB,Cheltenham Borough Council,"Cemetery, Crematorium and Churchyards",14073320,52727,Oconnor Construction Company Ltd,R3201-CCM001,Hire of Plant,08/11/2019,967.00 
http://statistics.data.gov.uk/id/local-authority-district/23UB,Cheltenham Borough Council,Repairs and Maintenance,14073752,O0445830,Orbis Protect Limited,R2012-HRA100,R & M of Build Standby and Call Out,22/11/2019,"1,250.49 "
http://statistics.data.gov.uk/id/local-authority-district/23UB,Cheltenham Borough Council,Recreation Centre Repairs & Maintenance,14073238,66617,P & R Heating Limited,R2080-REC111,Mechanical Services,01/11/2019,511.79 
http://statistics.data.gov.uk/id/local-authority-district/23UB,Cheltenham Borough Council,Recreation Centre Repairs & Maintenance,14073236,66618,P & R Heating Limited,R2080-REC111,Mechanical Services,01/11/2019,881.54 
http://statistics.data.gov.uk/id/local-authority-district/23UB,Cheltenham Borough Council,Recreation Centre Repairs & Maintenance,14073241,66630,P & R Heating Limited,R2083-REC111,R&M of Build - Routine,01/11/2019,733.50 
http://statistics.data.gov.uk/id/local-authority-district/23UB,Cheltenham Borough Council,Income and Expenditure on Investment Properties and Changes in Their Fair Value,14073985,66631,P & R Heating Limited,R2004-FIE040,R & M of Build Programmed,29/11/2019,"8,782.45 "
http://statistics.data.gov.uk/id/local-authority-district/23UB,Cheltenham Borough Council,Art Gallery & Museum Repairs & Maintenance,14073204,66632,P & R Heating Limited,R2004-CUL117,R & M of Build Programmed,01/11/2019,"3,103.93 "
http://statistics.data.gov.uk/id/local-authority-district/23UB,Cheltenham Borough Council,Recreation Centre Repairs & Maintenance,14073378,66718,P & R Heating Limited,R2083-REC111,R&M of Build - Routine,08/11/2019,618.84 
http://statistics.data.gov.uk/id/local-authority-district/23UB,Cheltenham Borough Council,Town Hall Repairs & Maintenance,14073590,66736,P & R Heating Limited,R2008-CUL112,R & M of Build - Reactive Repairs,15/11/2019,755.06 
http://statistics.data.gov.uk/id/local-authority-district/23UB,Cheltenham Borough Council,Art Gallery & Museum Repairs & Maintenance,14073620,66739,P & R Heating Limited,R2078-CUL117,R&M of Build - external structures,15/11/2019,997.09 
http://statistics.data.gov.uk/id/local-authority-district/23UB,Cheltenham Borough Council,Recreation Centre Repairs & Maintenance,14073870,66767,P & R Heating Limited,R2062-REC111,R & M of Build Cyclical Electrical Remedials,29/11/2019,764.56 
http://statistics.data.gov.uk/id/local-authority-district/23UB,Cheltenham Borough Council,Cheltenham Municipal Offices,14073981,66893,P & R Heating Limited,R2062-ADB101,R & M of Build Cyclical Electrical Remedials,29/11/2019,838.00 
http://statistics.data.gov.uk/id/local-authority-district/23UB,Cheltenham Borough Council,Sustainability Measures,14073496,INV-2130,Parity Projects Limited,C1107-CAH032,Building Works,15/11/2019,"5,075.00 "
http://statistics.data.gov.uk/id/local-authority-district/23UB,Cheltenham Borough Council,Car Parks - Off Street Operations,14073404,10325,Patrol,R4401-CPK001,Services - Fees and Charges,15/11/2019,633.30 
http://statistics.data.gov.uk/id/local-authority-district/23UB,Cheltenham Borough Council,Reception/Customer Services,14073972,PDPT-PCFOI-92072,PDP,R4400-SUP008,Services - Professional Fees,29/11/2019,"1,850.00 "
http://statistics.data.gov.uk/id/local-authority-district/23UB,Cheltenham Borough Council,Corporate Management,14073264,603890,Penna plc,R1700-COR001,Staff Advertising Costs,01/11/2019,"4,668.00 "
http://statistics.data.gov.uk/id/local-authority-district/23UB,Cheltenham Borough Council,Public Realm Improvements - High Street Phase 2,14073476,PC4700,Perfect Circle JV Limited,C1105-CAP207,Design Services,15/11/2019,"2,086.66 "
http://statistics.data.gov.uk/id/local-authority-district/23UB,Cheltenham Borough Council,Cheltenham Municipal Offices,14073618,67100152,Personnel Hygiene Services (PHS Group),R2083-ADB101,R&M of Build - Routine,15/11/2019,"5,955.09 "
http://statistics.data.gov.uk/id/local-authority-district/23UB,Cheltenham Borough Council,Public Conveniences R&M,14073606,67100154,Personnel Hygiene Services (PHS Group),R2083-REG119,R&M of Build - Routine,15/11/2019,"1,443.94 "
http://statistics.data.gov.uk/id/local-authority-district/23UB,Cheltenham Borough Council,Public Conveniences R&M,14073607,67100155,Personnel Hygiene Services (PHS Group),R2083-REG119,R&M of Build - Routine,15/11/2019,"2,003.84 "
http://statistics.data.gov.uk/id/local-authority-district/23UB,Cheltenham Borough Council,Public Conveniences R&M,14073608,67100156,Personnel Hygiene Services (PHS Group),R2083-REG119,R&M of Build - Routine,15/11/2019,"1,402.88 "
http://statistics.data.gov.uk/id/local-authority-district/23UB,Cheltenham Borough Council,Public Conveniences R&M,14073616,67100166,Personnel Hygiene Services (PHS Group),R2083-REG119,R&M of Build - Routine,15/11/2019,"1,483.56 "
http://statistics.data.gov.uk/id/local-authority-district/23UB,Cheltenham Borough Council,Development costs - Monkscroft,14073213,3196002,Peter Evans Partnership Ltd,C1005-CAH061,Surveyors Fees,15/11/2019,"3,122.27 "
http://statistics.data.gov.uk/id/local-authority-district/23UB,Cheltenham Borough Council,Waste & Recycling - Marketing & Management,14073528,OP/I854189,Phoenix Software Limited,R4531-RYC007,IT - Purchase of Software,15/11/2019,701.00 
http://statistics.data.gov.uk/id/local-authority-district/23UB,Cheltenham Borough Council,Urban Design,14073578,OP/I854268,Phoenix Software Limited,R4531-URB101,IT - Purchase of Software,15/11/2019,"2,103.00 "
http://statistics.data.gov.uk/id/local-authority-district/23UB,Cheltenham Borough Council,Press & PR/Communications,14073577,OP/I854271,Phoenix Software Limited,R4531-SUP018,IT - Purchase of Software,15/11/2019,701.00 
http://statistics.data.gov.uk/id/local-authority-district/23UB,Cheltenham Borough Council,Press & PR/Communications,14073569,OP/I854323,Phoenix Software Limited,R4531-SUP018,IT - Purchase of Software,15/11/2019,701.00 
http://statistics.data.gov.uk/id/local-authority-district/23UB,Cheltenham Borough Council,Ubico Intercompany Account,14073340,25808,Pro-Door Limited,R2008-HLD102,R & M of Build - Reactive Repairs,08/11/2019,545.00 
http://statistics.data.gov.uk/id/local-authority-district/23UB,Cheltenham Borough Council,Publica Business Support Contract,14073527,85001921,Publica Group (Support) Limited,R5500-SUP106,TPP - Publica Contract,15/11/2019,"121,687.74 "
http://statistics.data.gov.uk/id/local-authority-district/23UB,Cheltenham Borough Council,,0,,,-,,,0.00 
http://statistics.data.gov.uk/id/local-authority-district/23UB,Cheltenham Borough Council,Cheltenham Municipal Offices,14073332,28286,R F Gardiner Limited T/as Gardiners,R2004-ADB101,R & M of Build Programmed,15/11/2019,"1,112.61 "
http://statistics.data.gov.uk/id/local-authority-district/23UB,Cheltenham Borough Council,Income and Expenditure on Investment Properties and Changes in Their Fair Value,14073427,28298,R F Gardiner Limited T/as Gardiners,R2004-FIE040,R & M of Build Programmed,08/11/2019,"1,171.20 "
http://statistics.data.gov.uk/id/local-authority-district/23UB,Cheltenham Borough Council,Car Parks - Off Street R&M,14073507,28331,R F Gardiner Limited T/as Gardiners,R2008-CPK101,R & M of Build - Reactive Repairs,15/11/2019,"1,417.44 "
http://statistics.data.gov.uk/id/local-authority-district/23UB,Cheltenham Borough Council,Income and Expenditure on Investment Properties and Changes in Their Fair Value,14073633,28363,R F Gardiner Limited T/as Gardiners,R2008-FIE040,R & M of Build - Reactive Repairs,15/11/2019,809.33 
http://statistics.data.gov.uk/id/local-authority-district/23UB,Cheltenham Borough Council,Income and Expenditure on Investment Properties and Changes in Their Fair Value,14073718,28364,R F Gardiner Limited T/as Gardiners,R2008-FIE040,R & M of Build - Reactive Repairs,22/11/2019,970.42 
http://statistics.data.gov.uk/id/local-authority-district/23UB,Cheltenham Borough Council,Recreation Centre Repairs & Maintenance,14073584,28365,R F Gardiner Limited T/as Gardiners,R2008-REC111,R & M of Build - Reactive Repairs,15/11/2019,"3,191.06 "
http://statistics.data.gov.uk/id/local-authority-district/23UB,Cheltenham Borough Council,Car Parks - Off Street R&M,14073642,28372,R F Gardiner Limited T/as Gardiners,R2078-CPK101,R&M of Build - external structures,15/11/2019,590.49 
http://statistics.data.gov.uk/id/local-authority-district/23UB,Cheltenham Borough Council,Town Hall Repairs & Maintenance,14073639,28373,R F Gardiner Limited T/as Gardiners,R2008-CUL112,R & M of Build - Reactive Repairs,15/11/2019,"1,231.67 "
http://statistics.data.gov.uk/id/local-authority-district/23UB,Cheltenham Borough Council,Recreation Centre Repairs & Maintenance,14073653,28376,R F Gardiner Limited T/as Gardiners,R2008-REC111,R & M of Build - Reactive Repairs,15/11/2019,504.00 
http://statistics.data.gov.uk/id/local-authority-district/23UB,Cheltenham Borough Council,Income and Expenditure on Investment Properties and Changes in Their Fair Value,14073659,28378,R F Gardiner Limited T/as Gardiners,R2004-FIE040,R & M of Build Programmed,15/11/2019,"1,154.43 "
http://statistics.data.gov.uk/id/local-authority-district/23UB,Cheltenham Borough Council,Development Control - Applications,14073658,28379,R F Gardiner Limited T/as Gardiners,R4400-DEV001,Services - Professional Fees,15/11/2019,790.48 
http://statistics.data.gov.uk/id/local-authority-district/23UB,Cheltenham Borough Council,High Street Public Realm Improvements,14073498,28397,R F Gardiner Limited T/as Gardiners,C1105-CAP205,Design Services,15/11/2019,"3,023.00 "
http://statistics.data.gov.uk/id/local-authority-district/23UB,Cheltenham Borough Council,Crematorium Scheme: New Build,14073851,28404,R F Gardiner Limited T/as Gardiners,C1100-CAP601,Construction,29/11/2019,"1,776.00 "
http://statistics.data.gov.uk/id/local-authority-district/23UB,Cheltenham Borough Council,Civic Events,14073689,28405,R F Gardiner Limited T/as Gardiners,R4401-DRM012,Services - Fees and Charges,22/11/2019,"1,640.00 "
http://statistics.data.gov.uk/id/local-authority-district/23UB,Cheltenham Borough Council,Recreation Centre Repairs & Maintenance,14073715,28406,R F Gardiner Limited T/as Gardiners,R2047-REC111,R & M of Build Door Entry Keys,22/11/2019,897.84 
http://statistics.data.gov.uk/id/local-authority-district/23UB,Cheltenham Borough Council,Cyber Business Park,14073575,1655,RAB Retail Ltd,R4411-PLP105,Consultancy Fees,15/11/2019,"4,000.00 "
http://statistics.data.gov.uk/id/local-authority-district/23UB,Cheltenham Borough Council,Development Control - Applications,14073572,5022051,Reach Publishing Services Ltd,R4317-DEV001,Non Staff Advertising,22/11/2019,504.40 
http://statistics.data.gov.uk/id/local-authority-district/23UB,Cheltenham Borough Council,Development Control - Applications,14073977,5037564,Reach Publishing Services Ltd,R4317-DEV001,Non Staff Advertising,29/11/2019,543.20 
http://statistics.data.gov.uk/id/local-authority-district/23UB,Cheltenham Borough Council,Recreation Centre Repairs & Maintenance,14073660,625392,Robert Hall Business Equipment Limited,R4005-REC111,Furniture - Purchases,22/11/2019,"2,750.00 "
http://statistics.data.gov.uk/id/local-authority-district/23UB,Cheltenham Borough Council,Individual Electoral Registration,14072940,9059694269,Royal Mail,R4521-ELE010,Postages - franking machine,08/11/2019,"2,285.18 "
http://statistics.data.gov.uk/id/local-authority-district/23UB,Cheltenham Borough Council,Individual Electoral Registration,14073250,9059772803,Royal Mail,R4521-ELE010,Postages - franking machine,08/11/2019,786.90 
http://statistics.data.gov.uk/id/local-authority-district/23UB,Cheltenham Borough Council,Council Tax Collection,14073800,9059853098,Royal Mail,R4521-LTC001,Postages - franking machine,29/11/2019,513.42 
http://statistics.data.gov.uk/id/local-authority-district/23UB,Cheltenham Borough Council,Registration of Electors,14073726,9059863122,Royal Mail,R4520-ELE001,Postages - stamps,22/11/2019,"1,051.94 "
http://statistics.data.gov.uk/id/local-authority-district/23UB,Cheltenham Borough Council,Council Tax Collection,14073799,9059879966,Royal Mail,R4521-LTC001,Postages - franking machine,29/11/2019,667.65 
http://statistics.data.gov.uk/id/local-authority-district/23UB,Cheltenham Borough Council,Sandford Lido car park,14073755,SANDFORD LIDO OCT 19,Sandford Parks Lido (Trading) Limited,R5003-CPK103,TPP - Agency Fees,29/11/2019,"-1,683.33 "
http://statistics.data.gov.uk/id/local-authority-district/23UB,Cheltenham Borough Council,Sandford Lido car park,14073755,SANDFORD LIDO OCT 19,Sandford Parks Lido (Trading) Limited,R5003-CPK103,TPP - Agency Fees,29/11/2019,"18,342.25 "
http://statistics.data.gov.uk/id/local-authority-district/23UB,Cheltenham Borough Council,Repairs and Maintenance,14073247,1764,SAS EPC,R2018-HRA100,R & M of Build Voids Energy Performance Certificates,15/11/2019,650.00 
http://statistics.data.gov.uk/id/local-authority-district/23UB,Cheltenham Borough Council,Non Traditional Homes,14073983,796870,SCCI Alphatrack Limited,C1107-CAH036,Building Works,29/11/2019,936.00 
http://statistics.data.gov.uk/id/local-authority-district/23UB,Cheltenham Borough Council,Car Parks - Off Street Operations,14073301,S&B-GB211976,Scheidt & Bachmann UK Ltd,R4003-CPK001,Tools & Equipment - R & M,01/11/2019,"4,210.50 "
http://statistics.data.gov.uk/id/local-authority-district/23UB,Cheltenham Borough Council,Car Park Income Collection,14073501,772156,Security Plus+ Limited,R4435-CPK002,Cash Collection Contract,15/11/2019,671.34 
http://statistics.data.gov.uk/id/local-authority-district/23UB,Cheltenham Borough Council,Parliamentary Elections,14073678,273015,Shaw & Sons Limited,R4000-ELE004,Equipment Purchase,15/11/2019,886.85 
http://statistics.data.gov.uk/id/local-authority-district/23UB,Cheltenham Borough Council,Internal Improvements - Communal,14073145,9054,Shield Electrical Services Ltd,C1107-CAH035,Building Works,08/11/2019,"59,879.73 "
http://statistics.data.gov.uk/id/local-authority-district/23UB,Cheltenham Borough Council,Internal Improvements - Communal,14073145,9054,Shield Electrical Services Ltd,C1107-CAH035,Building Works,08/11/2019,"24,879.73 "
http://statistics.data.gov.uk/id/local-authority-district/23UB,Cheltenham Borough Council,Internal Improvements - Communal,14073145,9054,Shield Electrical Services Ltd,C1107-CAH035,Building Works,08/11/2019,"-59,879.73 "
http://statistics.data.gov.uk/id/local-authority-district/23UB,Cheltenham Borough Council,Internal Improvements - Communal,14073145,9054,Shield Electrical Services Ltd,C1107-CAH035,Building Works,08/11/2019,"35,000.00 "
http://statistics.data.gov.uk/id/local-authority-district/23UB,Cheltenham Borough Council,Internal Improvements - Communal,14074209,9093,Shield Electrical Services Ltd,C1107-CAH035,Building Works,19/11/2019,"38,829.14 "
http://statistics.data.gov.uk/id/local-authority-district/23UB,Cheltenham Borough Council,Internal Improvements - Communal,14074209,9093,Shield Electrical Services Ltd,C1107-CAH035,Building Works,19/11/2019,"38,829.14 "
http://statistics.data.gov.uk/id/local-authority-district/23UB,Cheltenham Borough Council,Internal Improvements - Communal,14074209,9093,Shield Electrical Services Ltd,C1107-CAH035,Building Works,19/11/2019,"-38,829.14 "
http://statistics.data.gov.uk/id/local-authority-district/23UB,Cheltenham Borough Council,Tourist/Visitor Information Centre,14073290,80541,Signcraft Limited,R4400-TOU002,Services - Professional Fees,08/11/2019,"4,503.00 "
http://statistics.data.gov.uk/id/local-authority-district/23UB,Cheltenham Borough Council,Tourist/Visitor Information Centre,14073434,80562,Signcraft Limited,R4400-TOU002,Services - Professional Fees,08/11/2019,"5,538.50 "
http://statistics.data.gov.uk/id/local-authority-district/23UB,Cheltenham Borough Council,Tourist/Visitor Information Centre,14073365,SOPUB-INV-4019,So Publishing T/A SoGlos.com,R4014-TOU002,Marketing,08/11/2019,"3,600.00 "
http://statistics.data.gov.uk/id/local-authority-district/23UB,Cheltenham Borough Council,Bulking Facility,14073418,33887,South West Wood Products Limited,R2703-RYC008,Waste Management,08/11/2019,"7,436.16 "
http://statistics.data.gov.uk/id/local-authority-district/23UB,Cheltenham Borough Council,Bulking Facility,14073485,34725,South West Wood Products Limited,R2703-RYC008,Waste Management,15/11/2019,"5,990.40 "
http://statistics.data.gov.uk/id/local-authority-district/23UB,Cheltenham Borough Council,"Cemetery, Crematorium and Churchyards",14073148,SI-2492447,Spaldings Limited,R4010-CCM001,Materials - Other Materials,01/11/2019,660.00 
http://statistics.data.gov.uk/id/local-authority-district/23UB,Cheltenham Borough Council,"Cemetery, Crematorium and Churchyards",14073147,SI-2493837,Spaldings Limited,R4000-CCM001,Equipment Purchase,01/11/2019,783.98 
http://statistics.data.gov.uk/id/local-authority-district/23UB,Cheltenham Borough Council,Printing Services,14073486,432281,Springfield Business Papers Limited,R4306-SUP022,Photocopier Charges - Consumables,15/11/2019,"1,210.00 "
http://statistics.data.gov.uk/id/local-authority-district/23UB,Cheltenham Borough Council,Community Welfare Grants,14073988,COMMUNITY PRIDE 271119,ST Pauls Road Area Residents Association (SPRA),R6280-GBD001,Grants,29/11/2019,670.00 
http://statistics.data.gov.uk/id/local-authority-district/23UB,Cheltenham Borough Council,Parks & Gardens Operations,14073190,6778,Streetmaster (South Wales) Limited,R2500-OPS001,Fixtures and Fittings - Purchases,01/11/2019,776.00 
http://statistics.data.gov.uk/id/local-authority-district/23UB,Cheltenham Borough Council,Parks & Gardens Operations,14073582,6816,Streetmaster (South Wales) Limited,R2500-OPS001,Fixtures and Fittings - Purchases,15/11/2019,946.00 
http://statistics.data.gov.uk/id/local-authority-district/23UB,Cheltenham Borough Council,Non Traditional Homes,14073462,25508,Sustainable Building Services UK Ltd,C1107-CAH036,Building Works,15/11/2019,"133,520.68 "
http://statistics.data.gov.uk/id/local-authority-district/23UB,Cheltenham Borough Council,Car Park Income Collection,14073468,IN205872CT,Suzohapp (UK) Ltd,R4003-CPK002,Tools & Equipment - R & M,15/11/2019,"3,699.57 "
http://statistics.data.gov.uk/id/local-authority-district/23UB,Cheltenham Borough Council,Health & Safety,14073466,1624,Tailor Made Training UK,R1652-SUP019,Training Fees (External),15/11/2019,"1,495.00 "
http://statistics.data.gov.uk/id/local-authority-district/23UB,Cheltenham Borough Council,Cyber Business Park,14073279,326097,Target Marketing Group Limited,R4400-PLP105,Services - Professional Fees,01/11/2019,"1,400.00 "
http://statistics.data.gov.uk/id/local-authority-district/23UB,Cheltenham Borough Council,"Cemetery, Crematorium and Churchyards",14073266,25703,Teleshore UK Limited,R4003-CCM001,Tools & Equipment - R & M,01/11/2019,648.85 
http://statistics.data.gov.uk/id/local-authority-district/23UB,Cheltenham Borough Council,Legal,14073202,DEBT107368,Tewkesbury Borough Council,R4401-SUP004,Services - Fees and Charges,08/11/2019,"122,477.31 "
http://statistics.data.gov.uk/id/local-authority-district/23UB,Cheltenham Borough Council,Development Advice,14073514,DEBT107390,Tewkesbury Borough Council,R4400-DEV004,Services - Professional Fees,22/11/2019,"5,571.43 "
http://statistics.data.gov.uk/id/local-authority-district/23UB,Cheltenham Borough Council,Licensing,14073978,DEBT107422,Tewkesbury Borough Council,R4420-REG002,Legal Expenses And Court Costs,29/11/2019,"3,925.00 "
http://statistics.data.gov.uk/id/local-authority-district/23UB,Cheltenham Borough Council,Development costs - Phase 3 Garage Sites,14073808,CBH002,The Change Maker Social Enterprise Limited t/a ChangeMaker 3D,C1113-CAH062,Architect Fees,29/11/2019,"1,172.00 "
http://statistics.data.gov.uk/id/local-authority-district/23UB,Cheltenham Borough Council,Cultural - Service Management and Support Services,14071472,70064774,The Cheltenham Trust,R2083-CSM001,R&M of Build - Routine,15/11/2019,"31,719.00 "
http://statistics.data.gov.uk/id/local-authority-district/23UB,Cheltenham Borough Council,Cultural - Service Management and Support Services,14073206,70067239,The Cheltenham Trust,R5001-CSM001,TPP - Major External Contractors,29/11/2019,"3,000.00 "
http://statistics.data.gov.uk/id/local-authority-district/23UB,Cheltenham Borough Council,Cultural - Service Management and Support Services,14073186,70067391,The Cheltenham Trust,R5001-CSM001,TPP - Major External Contractors,01/11/2019,"67,606.75 "
http://statistics.data.gov.uk/id/local-authority-district/23UB,Cheltenham Borough Council,Cultural - Service Management and Support Services,14073207,70067462,The Cheltenham Trust,R5001-CSM001,TPP - Major External Contractors,01/11/2019,"13,850.06 "
http://statistics.data.gov.uk/id/local-authority-district/23UB,Cheltenham Borough Council,Cultural - Service Management and Support Services,14073209,70067480,The Cheltenham Trust,R5001-CSM001,TPP - Major External Contractors,01/11/2019,"5,000.00 "
http://statistics.data.gov.uk/id/local-authority-district/23UB,Cheltenham Borough Council,Cultural - Service Management and Support Services,14073265,70067515,The Cheltenham Trust,R5001-CSM001,TPP - Major External Contractors,01/11/2019,"13,868.00 "
http://statistics.data.gov.uk/id/local-authority-district/23UB,Cheltenham Borough Council,Cultural - Service Management and Support Services,14073767,70068165,The Cheltenham Trust,R5001-CSM001,TPP - Major External Contractors,22/11/2019,"67,606.75 "
http://statistics.data.gov.uk/id/local-authority-district/23UB,Cheltenham Borough Council,Corporate Management,14073442,STB/01/OCT19,The Isbourne Foundation,R9382-COR001,Training Courses,15/11/2019,663.00 
http://statistics.data.gov.uk/id/local-authority-district/23UB,Cheltenham Borough Council,Community Alarms,14073840,98406,The Key Safe Company,R4000-SPP002,Equipment Purchase,29/11/2019,"2,150.00 "
http://statistics.data.gov.uk/id/local-authority-district/23UB,Cheltenham Borough Council,General Fund Balance Sheet,14073359,8.50028E+11,The Midcounties Co-operative,B1670-BAL100,Assets under construction - Other depreciation/impairment movements,08/11/2019,"1,721.83 "
http://statistics.data.gov.uk/id/local-authority-district/23UB,Cheltenham Borough Council,Adaptations for the Disabled (CBC),14073304,17/00052/DMTLA INTERIM NO 2,The Surveying Practice - Client Account,C1107-CAH028,Building Works,08/11/2019,"10,000.00 "
http://statistics.data.gov.uk/id/local-authority-district/23UB,Cheltenham Borough Council,Adaptations for the Disabled (CBC),14073303,18/00013/DMTLA FINAL,The Surveying Practice - Client Account,C1107-CAH028,Building Works,08/11/2019,"7,374.78 "
http://statistics.data.gov.uk/id/local-authority-district/23UB,Cheltenham Borough Council,Disabled Facility Grants,14073664,18/00077/DMOOC FINAL,The Surveying Practice - Client Account,C5000-CAP221,Grants,22/11/2019,"2,119.70 "
http://statistics.data.gov.uk/id/local-authority-district/23UB,Cheltenham Borough Council,Adaptations for the Disabled (CBC),14074384,18/00110/DMTCA FINAL,The Surveying Practice - Client Account,C1107-CAH028,Building Works,18/11/2019,"14,695.17 "
http://statistics.data.gov.uk/id/local-authority-district/23UB,Cheltenham Borough Council,Adaptations for the Disabled (CBC),14073431,18/00110/DMTLA INTERIM NO 1,The Surveying Practice - Client Account,C1107-CAH028,Building Works,08/11/2019,"15,000.00 "
http://statistics.data.gov.uk/id/local-authority-district/23UB,Cheltenham Borough Council,Disabled Facility Grants,14073802,19/00049/DMMOB INTERIM NO 1,The Surveying Practice - Client Account,C5000-CAP221,Grants,29/11/2019,"5,778.18 "
http://statistics.data.gov.uk/id/local-authority-district/23UB,Cheltenham Borough Council,Adaptations for the Disabled (CBC),14073694,19/00050/DMTLA,The Surveying Practice - Client Account,C1107-CAH028,Building Works,22/11/2019,"16,777.20 "
http://statistics.data.gov.uk/id/local-authority-district/23UB,Cheltenham Borough Council,Pest Control,14073832,6565,Thermokil Insect Control Services Ltd,R4001-REG018,Tools & Equipment - Hire,29/11/2019,725.00 
http://statistics.data.gov.uk/id/local-authority-district/23UB,Cheltenham Borough Council,Tourist/Visitor Information Centre,14073706,1563,Third Floor Design Limited,R4014-TOU002,Marketing,22/11/2019,"1,465.00 "
http://statistics.data.gov.uk/id/local-authority-district/23UB,Cheltenham Borough Council,Tourist/Visitor Information Centre,14073708,1564,Third Floor Design Limited,R4014-TOU002,Marketing,22/11/2019,"1,275.00 "
http://statistics.data.gov.uk/id/local-authority-district/23UB,Cheltenham Borough Council,Tourist/Visitor Information Centre,14073705,1629,Third Floor Design Limited,R4014-TOU002,Marketing,22/11/2019,"1,373.50 "
http://statistics.data.gov.uk/id/local-authority-district/23UB,Cheltenham Borough Council,"Cemetery, Crematorium and Churchyards",14072618,7299,Travail Employment Group,R1100-CCM001,Agency Staff,08/11/2019,"2,891.71 "
http://statistics.data.gov.uk/id/local-authority-district/23UB,Cheltenham Borough Council,"Cemetery, Crematorium and Churchyards",14072856,7609,Travail Employment Group,R1100-CCM001,Agency Staff,08/11/2019,"2,676.87 "
http://statistics.data.gov.uk/id/local-authority-district/23UB,Cheltenham Borough Council,"Cemetery, Crematorium and Churchyards",14072998,7929,Travail Employment Group,R1100-CCM001,Agency Staff,08/11/2019,"1,689.42 "
http://statistics.data.gov.uk/id/local-authority-district/23UB,Cheltenham Borough Council,"Cemetery, Crematorium and Churchyards",14073158,8230,Travail Employment Group,R1100-CCM001,Agency Staff,08/11/2019,"2,537.24 "
http://statistics.data.gov.uk/id/local-authority-district/23UB,Cheltenham Borough Council,"Cemetery, Crematorium and Churchyards",14073248,8532,Travail Employment Group,R1100-CCM001,Agency Staff,08/11/2019,"2,074.88 "
http://statistics.data.gov.uk/id/local-authority-district/23UB,Cheltenham Borough Council,"Cemetery, Crematorium and Churchyards",14073510,8800,Travail Employment Group,R1100-CCM001,Agency Staff,29/11/2019,"1,689.42 "
http://statistics.data.gov.uk/id/local-authority-district/23UB,Cheltenham Borough Council,"Cemetery, Crematorium and Churchyards",14073686,9119,Travail Employment Group,R1100-CCM001,Agency Staff,29/11/2019,"1,510.62 "
http://statistics.data.gov.uk/id/local-authority-district/23UB,Cheltenham Borough Council,"Cemetery, Crematorium and Churchyards",14073821,9418,Travail Employment Group,R1100-CCM001,Agency Staff,29/11/2019,"1,652.17 "
http://statistics.data.gov.uk/id/local-authority-district/23UB,Cheltenham Borough Council,High Street Public Realm Improvements,14072439,782,Turf Group,C1102-CAP205,Landscaping,22/11/2019,"4,629.00 "
http://statistics.data.gov.uk/id/local-authority-district/23UB,Cheltenham Borough Council,Individual Electoral Registration,14073836,144489,Twofold Limited,R4534-ELE010,IT - Maint Agreements,29/11/2019,549.00 
http://statistics.data.gov.uk/id/local-authority-district/23UB,Cheltenham Borough Council,Individual Electoral Registration,14073836,144489,Twofold Limited,R4000-ELE010,Equipment Purchase,29/11/2019,"6,183.81 "
http://statistics.data.gov.uk/id/local-authority-district/23UB,Cheltenham Borough Council,Household Waste,14073768,60030558,Ubico Limited,R5001-WST001,TPP - Major External Contractors,22/11/2019,"743,448.50 "
http://statistics.data.gov.uk/id/local-authority-district/23UB,Cheltenham Borough Council,"Cemetery, Crematorium and Churchyards",14073906,60030807,Ubico Limited,R3203-CCM001,Hire of Other Vehicles,29/11/2019,743.07 
http://statistics.data.gov.uk/id/local-authority-district/23UB,Cheltenham Borough Council,Environmental Health General,14073193,SN387431/1,University of the West of England,R1652-REG001,Training Fees (External),01/11/2019,"3,950.00 "
http://statistics.data.gov.uk/id/local-authority-district/23UB,Cheltenham Borough Council,Corporate Management,14073513,BN1-00042712,Veale Wasbrough Vizards,R4420-COR001,Legal Expenses And Court Costs,15/11/2019,"1,419.00 "
http://statistics.data.gov.uk/id/local-authority-district/23UB,Cheltenham Borough Council,Car Parks - Off Street Operations,14073030,1800,Verrus (UK) Limited (Pay By Phone),R4401-CPK001,Services - Fees and Charges,01/11/2019,"4,280.24 "
http://statistics.data.gov.uk/id/local-authority-district/23UB,Cheltenham Borough Council,Car Parks - Off Street Operations,14073515,2512,Verrus (UK) Limited (Pay By Phone),R4401-CPK001,Services - Fees and Charges,15/11/2019,"5,212.16 "
http://statistics.data.gov.uk/id/local-authority-district/23UB,Cheltenham Borough Council,Bulky Household Waste,14073777,14/19,Vision 21,R4401-WST004,Services - Fees and Charges,29/11/2019,"4,143.75 "
http://statistics.data.gov.uk/id/local-authority-district/23UB,Cheltenham Borough Council,"Cemetery, Crematorium and Churchyards",14073487,19-10-Cheltenh,Vivedia Limited,R4011-CCM001,Goods For Resale,15/11/2019,600.00 
http://statistics.data.gov.uk/id/local-authority-district/23UB,Cheltenham Borough Council,Cyber Business Park,14073240,40819,"Vivid Resourcing, a division of g2V Recruitment Group Limited",R4400-PLP105,Services - Professional Fees,01/11/2019,"5,770.00 "
http://statistics.data.gov.uk/id/local-authority-district/23UB,Cheltenham Borough Council,Cyber Business Park,14073341,41028,"Vivid Resourcing, a division of g2V Recruitment Group Limited",R4400-PLP105,Services - Professional Fees,08/11/2019,"2,885.00 "
http://statistics.data.gov.uk/id/local-authority-district/23UB,Cheltenham Borough Council,Cyber Business Park,14073512,41246,"Vivid Resourcing, a division of g2V Recruitment Group Limited",R4400-PLP105,Services - Professional Fees,15/11/2019,"2,885.00 "
http://statistics.data.gov.uk/id/local-authority-district/23UB,Cheltenham Borough Council,Cyber Business Park,14073748,41449,"Vivid Resourcing, a division of g2V Recruitment Group Limited",R4400-PLP105,Services - Professional Fees,22/11/2019,"2,885.00 "
http://statistics.data.gov.uk/id/local-authority-district/23UB,Cheltenham Borough Council,Cyber Business Park,14073903,41604,"Vivid Resourcing, a division of g2V Recruitment Group Limited",R4400-PLP105,Services - Professional Fees,29/11/2019,"2,885.00 "
http://statistics.data.gov.uk/id/local-authority-district/23UB,Cheltenham Borough Council,Press & PR/Communications,14073958,M303025,Vodafone Limited,R4507-SUP018,Comms - Mobile Telephones,29/11/2019,502.00 
http://statistics.data.gov.uk/id/local-authority-district/23UB,Cheltenham Borough Council,Council Tax Collection,14073837,18257,Voicescape Ltd,R4401-LTC001,Services - Fees and Charges,29/11/2019,"5,000.00 "
http://statistics.data.gov.uk/id/local-authority-district/23UB,Cheltenham Borough Council,Xmas in Cheltenham,14073913,579,Watkins Iles Limited,R2008-ECD101,R & M of Build - Reactive Repairs,29/11/2019,"8,150.00 "
http://statistics.data.gov.uk/id/local-authority-district/23UB,Cheltenham Borough Council,Xmas in Cheltenham,14073913,579,Watkins Iles Limited,R2008-ECD101,R & M of Build - Reactive Repairs,29/11/2019,"1,525.00 "
http://statistics.data.gov.uk/id/local-authority-district/23UB,Cheltenham Borough Council,Parks & Gardens Operations,14073306,580,Watkins Iles Limited,R2007-OPS001,R & M of Plant Contracts,08/11/2019,"3,076.16 "
http://statistics.data.gov.uk/id/local-authority-district/23UB,Cheltenham Borough Council,Parks & Gardens Operations,14073354,581,Watkins Iles Limited,R2007-OPS001,R & M of Plant Contracts,08/11/2019,"2,436.00 "
http://statistics.data.gov.uk/id/local-authority-district/23UB,Cheltenham Borough Council,Built Environment,14072548,33327776,West Oxfordshire District Council,R4535-SUP040,IT - Licences,29/11/2019,"4,288.89 "
http://statistics.data.gov.uk/id/local-authority-district/23UB,Cheltenham Borough Council,Environmental Health General,14072548,33327776,West Oxfordshire District Council,R4535-REG001,IT - Licences,29/11/2019,"8,303.04 "
http://statistics.data.gov.uk/id/local-authority-district/23UB,Cheltenham Borough Council,Development Control - Applications,14072548,33327776,West Oxfordshire District Council,R4535-DEV001,IT - Licences,29/11/2019,"23,860.35 "
http://statistics.data.gov.uk/id/local-authority-district/23UB,Cheltenham Borough Council,Property Services,14072548,33327776,West Oxfordshire District Council,R4535-SUP025,IT - Licences,29/11/2019,"7,254.28 "
http://statistics.data.gov.uk/id/local-authority-district/23UB,Cheltenham Borough Council,Development Control - Applications,14072548,33327776,West Oxfordshire District Council,R4535-DEV001,IT - Licences,29/11/2019,"1,616.00 "
http://statistics.data.gov.uk/id/local-authority-district/23UB,Cheltenham Borough Council,Regulatory & Environmental Services Transformation,14072548,33327776,West Oxfordshire District Council,R4535-SUP140,IT - Licences,29/11/2019,"13,920.20 "
http://statistics.data.gov.uk/id/local-authority-district/23UB,Cheltenham Borough Council,Licensing,14072548,33327776,West Oxfordshire District Council,R4535-REG002,IT - Licences,29/11/2019,"4,144.37 "
http://statistics.data.gov.uk/id/local-authority-district/23UB,Cheltenham Borough Council,Land Charges,14072548,33327776,West Oxfordshire District Council,R4535-BUC004,IT - Licences,29/11/2019,"6,068.12 "
http://statistics.data.gov.uk/id/local-authority-district/23UB,Cheltenham Borough Council,Building Control - Fee Earning Work,14072548,33327776,West Oxfordshire District Council,R4535-BUC001,IT - Licences,29/11/2019,"7,254.28 "
http://statistics.data.gov.uk/id/local-authority-district/23UB,Cheltenham Borough Council,Cheltenham Trust Intercompany Account,14072547,33327990,West Oxfordshire District Council,R4535-HLD170,IT - Licences,22/11/2019,"8,294.10 "
http://statistics.data.gov.uk/id/local-authority-district/23UB,Cheltenham Borough Council,ICT,14072547,33327990,West Oxfordshire District Council,R4535-SUP005,IT - Licences,22/11/2019,"20,735.26 "
http://statistics.data.gov.uk/id/local-authority-district/23UB,Cheltenham Borough Council,Environmental Health General,14073574,KP00160714,Western Power Distribution,R4000-REG001,Equipment Purchase,15/11/2019,809.64 
http://statistics.data.gov.uk/id/local-authority-district/23UB,Cheltenham Borough Council,Flood Risk Management,14073735,I19110115X,William Rose Drain Services Limited,R5001-FRM101,TPP - Major External Contractors,22/11/2019,"1,009.60 "
http://statistics.data.gov.uk/id/local-authority-district/23UB,Cheltenham Borough Council,Homelessness,14073665,REDACTED,REDACTED,R6280-HOM001,Grants,15/11/2019,936.92 
http://statistics.data.gov.uk/id/local-authority-district/23UB,Cheltenham Borough Council,Rent Control,14073567,RENT REFUND REDACTED,REDACTED,R9910-HRA900,Refund of Overpaid Rent,15/11/2019,760.32 
http://statistics.data.gov.uk/id/local-authority-district/23UB,Cheltenham Borough Council,Trees,14073460,REDACTED,REDACTED,R2070-PLP006,Tree Work,08/11/2019,870.00 
http://statistics.data.gov.uk/id/local-authority-district/23UB,Cheltenham Borough Council,Rent Control,14073803,RENT REFUND REDACTED,REDACTED,R9910-HRA900,Refund of Overpaid Rent,22/11/2019,626.48 
http://statistics.data.gov.uk/id/local-authority-district/23UB,Cheltenham Borough Council,Rent Control,14073568,RENT REFUND REDACTED,REDACTED,R9910-HRA900,Refund of Overpaid Rent,15/11/2019,"1,648.98 "
Bank Transactions,,,,,,,,,
http://statistics.data.gov.uk/id/local-authority-district/23UB,Cheltenham Borough Council,Cheltenham Municipal Offices,10031088,Bank Transactions,WEST MERCIA ENERGY - ELECTRICITY - MUNICIPAL OFFICES  - 01/09/2019-30/09/2019,R2100-ADB101,Electricity,14/11/2019,"2,426.72 "
http://statistics.data.gov.uk/id/local-authority-district/23UB,Cheltenham Borough Council,Cheltenham Municipal Offices,10031080,Bank Transactions,WEST MERCIA ENERGY - GAS - MUNICIPAL OFFICES- 31/08/2019 - 30/09/2019,R2101-ADB101,Gas,12/11/2019,678.95 
http://statistics.data.gov.uk/id/local-authority-district/23UB,Cheltenham Borough Council,Cheltenham Depot,10031088,Bank Transactions,WEST MERCIA ENERGY - ELECTRICITY - CENTRAL DEPOT - SWINDON ROAD  - 01/09/2019-30/09/2019,R2100-ADB103,Electricity,14/11/2019,"2,887.71 "
http://statistics.data.gov.uk/id/local-authority-district/23UB,Cheltenham Borough Council,Cheltenham Depot,10031038,Bank Transactions,"WATER PLUS - 406002149 - ENVIRONMENTAL MAINTENANCE, SWINDON ROAD, CHELTENHAM - WATER CHARGE - 23/09/2019 - 23/10/2019",R2401-ADB103,Water Services - Metered,08/11/2019,713.27 
http://statistics.data.gov.uk/id/local-authority-district/23UB,Cheltenham Borough Council,Phase 3 Development,10031188,Bank Transactions,Countrywide Conveyancing Services - 10% deposit for purchase of REDACTED,C1001-CAH039,Acquisition of Buildings,14/11/2019,"17,200.00 "
http://statistics.data.gov.uk/id/local-authority-district/23UB,Cheltenham Borough Council,Phase 3 Development,10031189,Bank Transactions,Countrywide Conveyancing Services - Balance of monies for purchase of REDACTED,C1001-CAH039,Acquisition of Buildings,22/11/2019,"154,800.00 "
http://statistics.data.gov.uk/id/local-authority-district/23UB,Cheltenham Borough Council,Phase 3 Development,10031190,Bank Transactions,Collingbourne Hennah Client Acc - Re-Purchase of REDACTED,C1001-CAH039,Acquisition of Buildings,22/11/2019,"70,000.00 "
http://statistics.data.gov.uk/id/local-authority-district/23UB,Cheltenham Borough Council,"H&S, vacant property & renovation grants",10031111,Bank Transactions,DAVIS GREGORY - REDACTED - HEALTH & SAFETY LOAN,C5000-CAP223,Grants,15/11/2019,"-12,492.97 "
http://statistics.data.gov.uk/id/local-authority-district/23UB,Cheltenham Borough Council,"Cemetery, Crematorium and Churchyards",10031088,Bank Transactions,WEST MERCIA ENERGY - ELECTRICITY - CEMETERY & CREMATORIUM - 01/09/2019-30/09/2019,R2100-CCM001,Electricity,14/11/2019,"1,862.12 "
http://statistics.data.gov.uk/id/local-authority-district/23UB,Cheltenham Borough Council,"Cemetery, Crematorium and Churchyards",10031088,Bank Transactions,WEST MERCIA ENERGY - GAS - CEMETERY & CREMATORIUM - 30/06/2019-31/07/2019,R2101-CCM001,Gas,14/11/2019,"1,195.99 "
http://statistics.data.gov.uk/id/local-authority-district/23UB,Cheltenham Borough Council,"Cemetery, Crematorium and Churchyards",10031088,Bank Transactions,WEST MERCIA ENERGY - GAS - CEMETERY & CREMATORIUM - 31/07/2019-31/08/2019,R2101-CCM001,Gas,14/11/2019,"1,081.20 "
http://statistics.data.gov.uk/id/local-authority-district/23UB,Cheltenham Borough Council,"Cemetery, Crematorium and Churchyards",10031109,Bank Transactions,WEST MERCIA ENERGY - GAS - CEMETERY & CREMATORIUM - 31/08/2019 -30/09/2019,R2101-CCM001,Gas,18/11/2019,"1,704.74 "
http://statistics.data.gov.uk/id/local-authority-district/23UB,Cheltenham Borough Council,"Cemetery, Crematorium and Churchyards",10031207,Bank Transactions,WEST MERCIA ENERGY - GAS - CEMETERY & CREMATORIUM - 31/08/2019-30/09/2019,R2101-CCM001,Gas,27/11/2019,929.13 
http://statistics.data.gov.uk/id/local-authority-district/23UB,Cheltenham Borough Council,CCTV,10031109,Bank Transactions,WEST MERCIA ENERGY - ELECTRICITY - CCTV @ VARIOUS LOCATIONS     - 01/09/2019-30/09/2019,R2100-CCT001,Electricity,18/11/2019,573.54 
http://statistics.data.gov.uk/id/local-authority-district/23UB,Cheltenham Borough Council,Treasury Management,10031227,Bank Transactions,SERVICE CHARGES REF: 293928300,R4403-COR006,Bank Charges,29/11/2019,554.40 
http://statistics.data.gov.uk/id/local-authority-district/23UB,Cheltenham Borough Council,Treasury Management,10031227,Bank Transactions,SERVICE CHARGES REF: 293933808,R4403-COR006,Bank Charges,29/11/2019,974.41 
http://statistics.data.gov.uk/id/local-authority-district/23UB,Cheltenham Borough Council,Treasury Management,10031087,Bank Transactions,CARDNET 169118221 - 500221866 SERVICE CHARGES,R4428-COR006,Services - credit card charges,14/11/2019,"3,467.15 "
http://statistics.data.gov.uk/id/local-authority-district/23UB,Cheltenham Borough Council,Treasury Management,10031087,Bank Transactions,CARDNET 169118221 - 500701602 SERVICE CHARGES,R4428-COR006,Services - credit card charges,14/11/2019,"1,082.61 "
http://statistics.data.gov.uk/id/local-authority-district/23UB,Cheltenham Borough Council,Treasury Management,10031087,Bank Transactions,CARDNET 500200738 SERVICE CHARGES,R4428-COR006,Services - credit card charges,14/11/2019,"2,741.04 "
http://statistics.data.gov.uk/id/local-authority-district/23UB,Cheltenham Borough Council,Car Parks - Off Street Operations,10031088,Bank Transactions,WEST MERCIA ENERGY - ELECTRICITY - CAR PARK - GROSVENOR TERRACE - 01/09/2019-30/09/2019,R2100-CPK001,Electricity,14/11/2019,"1,326.77 "
http://statistics.data.gov.uk/id/local-authority-district/23UB,Cheltenham Borough Council,Car Parks - Off Street Operations,10031088,Bank Transactions,WEST MERCIA ENERGY - ELECTRICITY - CAR PARK - REGENT ARCADE- 01/09/2019-30/09/2019,R2100-CPK001,Electricity,14/11/2019,918.70 
http://statistics.data.gov.uk/id/local-authority-district/23UB,Cheltenham Borough Council,Car Parks - Off Street Operations,10031140,Bank Transactions,S/LINE 85998870 - INV 26288205,R4428-CPK001,Services - credit card charges,19/11/2019,"6,155.74 "
http://statistics.data.gov.uk/id/local-authority-district/23UB,Cheltenham Borough Council,Car Parks - Off Street Operations,10031140,Bank Transactions,S/LINE 86046024 - INV 31868395,R4428-CPK001,Services - credit card charges,19/11/2019,"1,472.02 "
http://statistics.data.gov.uk/id/local-authority-district/23UB,Cheltenham Borough Council,Playhouse Theatre,10031122,Bank Transactions,Playhouse Theatre redevelopment costs- funded from Reserve,R6280-CUL109,Grants,14/11/2019,"22,361.00 "
http://statistics.data.gov.uk/id/local-authority-district/23UB,Cheltenham Borough Council,Town Hall Repairs & Maintenance,10031088,Bank Transactions,WEST MERCIA ENERGY - ELECTRICITY - CHELTENHAM TOWN HALL - 01/09/2019-30/09/2019,R2100-CUL112,Electricity,14/11/2019,"3,492.93 "
http://statistics.data.gov.uk/id/local-authority-district/23UB,Cheltenham Borough Council,Pittville Pump Room Repairs & Maintenance,10031088,Bank Transactions,WEST MERCIA ENERGY - ELECTRICITY - PITTVILLE PUMP ROOMS - 01/09/2019-30/09/2019,R2100-CUL113,Electricity,14/11/2019,797.51 
http://statistics.data.gov.uk/id/local-authority-district/23UB,Cheltenham Borough Council,Art Gallery & Museum Repairs & Maintenance,10031088,Bank Transactions,WEST MERCIA ENERGY - ELECTRICITY - WILSON ART GALLERY & MUSEUM- 01/09/2019-30/09/2019,R2100-CUL117,Electricity,14/11/2019,"5,390.12 "
http://statistics.data.gov.uk/id/local-authority-district/23UB,Cheltenham Borough Council,Art Gallery & Museum Repairs & Maintenance,10031080,Bank Transactions,WEST MERCIA ENERGY - GAS - WILSON ART GALLERY & MUSEUM- 31/08/2019 - 30/09/2019,R2101-CUL117,Gas,12/11/2019,"1,238.68 "
http://statistics.data.gov.uk/id/local-authority-district/23UB,Cheltenham Borough Council,Flood Risk Management,10031012,Bank Transactions,GBS EA PAYMENT - FLOOD DEFENCE GRANT IN AID OF THE UPPER HEARNE BROOK FLOOD ALLEVIATION,R5001-FRM101,TPP - Major External Contractors,05/11/2019,"-139,500.00 "
http://statistics.data.gov.uk/id/local-authority-district/23UB,Cheltenham Borough Council,Cheltenham Trust Intercompany Account,10031034,Bank Transactions,VODAFONE CORPORATION 2442783M712517,R4507-HLD170,Comms - Mobile Telephones,06/11/2019,"2,069.31 "
http://statistics.data.gov.uk/id/local-authority-district/23UB,Cheltenham Borough Council,Supervision and Management,10031010,Bank Transactions,OPUS ENERGY CORPORATION - 0921070,R2100-HRA110,Electricity,04/11/2019,"6,887.11 "
http://statistics.data.gov.uk/id/local-authority-district/23UB,Cheltenham Borough Council,Supervision and Management,10031080,Bank Transactions,WEST MERCIA ENERGY - GAS - COOPERS COURT - 31/08/2019 - 30/09/2019,R2101-HRA110,Gas,12/11/2019,696.69 
http://statistics.data.gov.uk/id/local-authority-district/23UB,Cheltenham Borough Council,Supervision and Management,10031080,Bank Transactions,WEST MERCIA ENERGY - GAS - GOLDFOOT HOUSE - 31/08/2019 - 30/09/2019,R2101-HRA110,Gas,12/11/2019,655.82 
http://statistics.data.gov.uk/id/local-authority-district/23UB,Cheltenham Borough Council,Supervision and Management,10031080,Bank Transactions,WEST MERCIA ENERGY - GAS - WALLACE HOUSE - 31/08/2019 - 30/09/2019,R2101-HRA110,Gas,12/11/2019,659.06 
http://statistics.data.gov.uk/id/local-authority-district/23UB,Cheltenham Borough Council,Parks & Gardens Operations,10031207,Bank Transactions,"WATER PLUS - 375009062 - BATH ROAD FOUNTAIN, BATH ROAD - WATER CHARGE - 07/09/2019-07/10/2019",R2401-OPS001,Water Services - Metered,27/11/2019,772.02 
http://statistics.data.gov.uk/id/local-authority-district/23UB,Cheltenham Borough Council,Recreation Centre Repairs & Maintenance,10031088,Bank Transactions,WEST MERCIA ENERGY - ELECTRICITY - LEISURE CENTRE - TOMMY TAYLORS LANE  - 01/09/2019-30/09/2019,R2100-REC111,Electricity,14/11/2019,"7,827.02 "
http://statistics.data.gov.uk/id/local-authority-district/23UB,Cheltenham Borough Council,Recreation Centre Repairs & Maintenance,10031080,Bank Transactions,"WEST MERCIA ENERGY - GAS - LEISURE CENTRE, TOMMY TAYLORS LANE - 31/08/2019 - 30/09/2019",R2101-REC111,Gas,12/11/2019,"10,325.29 "
http://statistics.data.gov.uk/id/local-authority-district/23UB,Cheltenham Borough Council,Prince of Wales Stadium Repairs & Maintenance,10031109,Bank Transactions,WEST MERCIA ENERGY - ELECTRICITY - PRINCE OF WALES STADIUM-   01/09/2019-30/09/2019,R2100-REC112,Electricity,18/11/2019,"1,951.94 "
http://statistics.data.gov.uk/id/local-authority-district/23UB,Cheltenham Borough Council,Prince of Wales Stadium Repairs & Maintenance,10031207,Bank Transactions,"WATER PLUS - 375009062 - PRINCE OF WALES STADIUM, TOMMY TAYLORS LANE, CHELTENHAM - WATER CHARGE - 07/09/2019-07/10/2019",R2401-REC112,Water Services - Metered,27/11/2019,"6,841.78 "
http://statistics.data.gov.uk/id/local-authority-district/23UB,Cheltenham Borough Council,Prince of Wales Stadium Repairs & Maintenance,10031207,Bank Transactions,"WATER PLUS - 375009062 - PRINCE OF WALES STADIUM, TOMMY TAYLORS LANE, CHELTENHAM - SEWERAGE CHARGE - 07/09/2019-07/10/2019",R2402-REC112,Sewerage and Environmental Services,27/11/2019,"5,016.53 "
http://statistics.data.gov.uk/id/local-authority-district/23UB,Cheltenham Borough Council,Telephones,10031034,Bank Transactions,VODAFONE CORPORATION 2442783M712517,R4507-SUP006,Comms - Mobile Telephones,06/11/2019,"5,941.82 "
http://statistics.data.gov.uk/id/local-authority-district/23UB,Cheltenham Borough Council,Business Improvement/Transformation,10031166,Bank Transactions,DINERS CLUB INTERNATIONAL,R3300-SUP017,Public Transport,22/11/2019,558.60 
Procurement Cards,,,,,,,,,
http://statistics.data.gov.uk/id/local-authority-district/23UB,Cheltenham Borough Council,Individual Electoral Registration,10031235,Procurement Cards,BUSINESS CHARGE CARD -REDACTED - THREE STORE,R4000-ELE010,Equipment Purchase,04/11/2019,760.00 
